{"text_format":"3","workbook":"xlsx","n_sheets":1,"sheets":["Протокол ШЭ ВОШ по предмету"],"not_rendered":{"defined_names":1},"read":"whole","date_system":"1900"}

{"sheet":"Протокол ШЭ ВОШ по предмету","index":0,"n_rows":77,"n_cols":16,"rows_kept":77}
["№","Код ОО","Наименование ОО","Фамилия","Пол","Участник с ОВЗ (да/нет)","Класс обучения","Класс участия","Балл","Добавлено баллов по итогам апелляций","Итоговый балл","Максимальный балл","Статус","Призёр республиканского этапа прошлого года","ФИО учителя","Место работы учителя"]
[1,520204,"Муниципальное бюджетное общеобразовательное учреждение «Средняя общеобразовательная школа №4» Чистопольского муниципального района Республики Татарстан","Осипова","Ж","нет",7,7,15,null,{"$f":"SUM(I2:J2)","v":15},35,"Призёр","нет","Тарасова Елена Владимировна","Муниципальное бюджетное общеобразовательное учреждение \"Средняя общеобразовательная школа №4\" Чистопольского муниципального района Республики Татарстан"]
[2,520001,"Муниципальное бюджетное общеобразовательное учреждение «Гимназия №1» Чистопольского муниципального района Республики Татарстан","Дедова","Ж","нет",7,7,12,null,12,35,"Призёр","нет","Шанина Рушана Асхатовна","Муниципальное бюджетное общеобразовательное учреждение \"Гимназия 1\" г.Чистополь Республика Татарстан"]
[3,520001,"Муниципальное бюджетное общеобразовательное учреждение «Гимназия №1» Чистопольского муниципального района Республики Татарстан","Горина","Ж","нет",7,7,11,null,11,35,"Участник","нет","Шанина Рушана Асхатовна","Муниципальное бюджетное общеобразовательное учреждение \"Гимназия 1\" г.Чистополь Республика Татарстан"]
[4,520204,"Муниципальное бюджетное общеобразовательное учреждение «Средняя общеобразовательная школа №4» Чистопольского муниципального района Республики Татарстан","Королев","М","нет",7,7,10,null,10,35,"Участник","нет","Тарасова Елена Владимировна","Муниципальное бюджетное общеобразовательное учреждение \"Средняя общеобразовательная школа №4\" Чистопольского муниципального района Республики Татарстан"]
[5,520201,"Муниципальное бюджетное общеобразовательное учреждение «Лицей №1» Чистопольского муниципального района Республики Татарстан","Ганин","М","нет",7,7,10,null,10,35,"Участник","нет","Хуснуллина Марина Сергеевна","Муниципальное бюджетное общеобразовательное учреждение \"Лицей № 1\" г.Чистополя Республики Татарстан"]
[6,520218,"Муниципальное бюджетное общеобразовательное учреждение «Средняя общеобразовательная школа №16» Чистопольского муниципального района Республики Татарстан","Садыкова","Ж","нет",7,7,10,null,10,35,"Участник","нет","Смирнова Тамара Александровна","Муниципальное бюджетное общеобразовательное учреждение \"Средняя общеобразовательная школа №16\" г.Чистополь Республики Татарстан"]
[7,520204,"Муниципальное бюджетное общеобразовательное учреждение «Средняя общеобразовательная школа №4» Чистопольского муниципального района Республики Татарстан","Назмутдинова","Ж","нет",7,7,9,null,9,35,"Участник","нет","Тарасова Елена Владимировна","Муниципальное бюджетное общеобразовательное учреждение \"Средняя общеобразовательная школа №4\" Чистопольского муниципального района Республики Татарстан"]
[8,520001,"Муниципальное бюджетное общеобразовательное учреждение «Гимназия №1» Чистопольского муниципального района Республики Татарстан","Савельева","Ж","нет",7,7,9,null,9,35,"Участник","нет","Шанина Рушана Асхатовна","Муниципальное бюджетное общеобразовательное учреждение \"Гимназия 1\" г.Чистополь Республика Татарстан"]
[9,520218,"Муниципальное бюджетное общеобразовательное учреждение «Средняя общеобразовательная школа №16» Чистопольского муниципального района Республики Татарстан","Краснова","Ж","нет",7,7,9,null,9,35,"Участник","нет","Смирнова Тамара Александровна","Муниципальное бюджетное общеобразовательное учреждение \"Средняя общеобразовательная школа №16\" г.Чистополь Республики Татарстан"]
[10,520001,"Муниципальное бюджетное общеобразовательное учреждение «Гимназия №1» Чистопольского муниципального района Республики Татарстан","Фатхутдинова","Ж","нет",7,7,8,null,8,35,"Участник","нет","Шанина Рушана Асхатовна","Муниципальное бюджетное общеобразовательное учреждение \"Гимназия 1\" г.Чистополь Республика Татарстан"]
[11,520001,"Муниципальное бюджетное общеобразовательное учреждение «Гимназия №1» Чистопольского муниципального района Республики Татарстан","Кипрова","Ж","нет",7,7,7,null,7,35,"Участник","нет","Шанина Рушана Асхатовна","Муниципальное бюджетное общеобразовательное учреждение \"Гимназия 1\" г.Чистополь Республика Татарстан"]
[12,520218,"Муниципальное бюджетное общеобразовательное учреждение «Средняя общеобразовательная школа №16» Чистопольского муниципального района Республики Татарстан","Володин","М","нет",7,7,7,null,7,35,"Участник","нет","Смирнова Тамара Александровна","Муниципальное бюджетное общеобразовательное учреждение \"Средняя общеобразовательная школа №16\" г.Чистополь Республики Татарстан"]
[13,520204,"Муниципальное бюджетное общеобразовательное учреждение «Средняя общеобразовательная школа №4» Чистопольского муниципального района Республики Татарстан","Сайфулина","Ж","нет",7,7,6,null,6,35,"Участник","нет","Тарасова Елена Владимировна","Муниципальное бюджетное общеобразовательное учреждение \"Средняя общеобразовательная школа №4\" Чистопольского муниципального района Республики Татарстан"]
[14,520204,"Муниципальное бюджетное общеобразовательное учреждение «Средняя общеобразовательная школа №4» Чистопольского муниципального района Республики Татарстан","Наумова","Ж","нет",7,7,6,null,6,35,"Участник","нет","Тарасова Елена Владимировна","Муниципальное бюджетное общеобразовательное учреждение \"Средняя общеобразовательная школа №4\" Чистопольского муниципального района Республики Татарстан"]
[15,520202,"Муниципальное бюджетное общеобразовательное учреждение «Лицей № 2» Чистопольского муниципального района Республики Татарстан","Буров","М","нет",7,7,6,null,6,35,"Участник","нет","Белоусова Галина Петровна","Муниципальное бюджетное общеобразовательное учреждение «Лицей № 2» Чистопольского муниципального района Республики Татарстан"]
[16,520218,"Муниципальное бюджетное общеобразовательное учреждение «Средняя общеобразовательная школа №16» Чистопольского муниципального района Республики Татарстан","Мусина","Ж","нет",7,7,5,null,5,35,"Участник","нет","Смирнова Тамара Александровна","Муниципальное бюджетное общеобразовательное учреждение \"Средняя общеобразовательная школа №16\" г.Чистополь Республики Татарстан"]
[17,520202,"Муниципальное бюджетное общеобразовательное учреждение «Лицей № 2» Чистопольского муниципального района Республики Татарстан","Корчагина","Ж","нет",8,8,23,null,23,45,"Победитель","нет","Белоусова Галина Петровна","Муниципальное бюджетное общеобразовательное учреждение «Лицей № 2» Чистопольского муниципального района Республики Татарстан"]
[18,520201,"Муниципальное бюджетное общеобразовательное учреждение «Лицей №1» Чистопольского муниципального района Республики Татарстан","Хисамиров","М","нет",8,8,20,null,20,45,"Призёр","нет","Хуснуллина Марина Сергеевна","Муниципальное бюджетное общеобразовательное учреждение \"Лицей № 1\" г.Чистополя Республики Татарстан"]
[19,520001,"Муниципальное бюджетное общеобразовательное учреждение «Гимназия №1» Чистопольского муниципального района Республики Татарстан","Карманова","Ж","нет",8,8,16,null,16,45,"Призёр","нет","Шанина Рушана Асхатовна","Муниципальное бюджетное общеобразовательное учреждение \"Гимназия 1\" г.Чистополь Республика Татарстан"]
[20,520001,"Муниципальное бюджетное общеобразовательное учреждение «Гимназия №1» Чистопольского муниципального района Республики Татарстан","Чикляева","Ж","нет",8,8,15,null,15,45,"Участник","нет","Шанина Рушана Асхатовна","Муниципальное бюджетное общеобразовательное учреждение \"Гимназия 1\" г.Чистополь Республика Татарстан"]
[21,520204,"Муниципальное бюджетное общеобразовательное учреждение «Средняя общеобразовательная школа №4» Чистопольского муниципального района Республики Татарстан","Тезенина","Ж","нет",8,8,14,null,14,45,"Участник","нет","Тарасова Елена Владимировна","Муниципальное бюджетное общеобразовательное учреждение \"Средняя общеобразовательная школа №4\" Чистопольского муниципального района Республики Татарстан"]
[22,520201,"Муниципальное бюджетное общеобразовательное учреждение «Лицей №1» Чистопольского муниципального района Республики Татарстан","Яруллин","М","нет",8,8,14,null,14,45,"Участник","нет","Хуснуллина Марина Сергеевна","Муниципальное бюджетное общеобразовательное учреждение \"Лицей № 1\" г.Чистополя Республики Татарстан"]
[23,520206,"Муниципальное бюджетное общеобразовательное учреждение «Основная общеобразовательная школа №6» Чистопольского муниципального района Республики Татарстан","Терехин","М","нет",8,8,14,null,14,45,"Участник","нет","Федорова Ирина Тимофеевна","Муниципальное бюджетное общеобразовательное учреждение «Основная общеобразовательная школа №6» Чистопольского муниципального района Республики Татарстан"]
[24,520205,"Муниципальное бюджетное общеобразовательное учреждение «Средняя общеобразовательная школа №5» Чистопольского муниципального района Республики Татарстан","Рассадин","М","нет",8,8,14,null,14,45,"Участник","нет","Галанцева Лилия Фагимовна","Муниципальное бюджетное общеобразовательное учреждение \"СОШ №5\" г.Чистополя Республики Татарстан"]
[25,520205,"Муниципальное бюджетное общеобразовательное учреждение «Средняя общеобразовательная школа №5» Чистопольского муниципального района Республики Татарстан","Гафиятуллина","Ж","нет",8,8,13,null,13,45,"Участник","нет","Галанцева Лилия Фагимовна","Муниципальное бюджетное общеобразовательное учреждение \"СОШ №5\" г.Чистополя Республики Татарстан"]
[26,520001,"Муниципальное бюджетное общеобразовательное учреждение «Гимназия №1» Чистопольского муниципального района Республики Татарстан","Шакирова","Ж","нет",8,8,12,null,12,45,"Участник","нет","Шанина Рушана Асхатовна","Муниципальное бюджетное общеобразовательное учреждение \"Гимназия 1\" г.Чистополь Республика Татарстан"]
[27,520001,"Муниципальное бюджетное общеобразовательное учреждение «Гимназия №1» Чистопольского муниципального района Республики Татарстан","Гарабова","Ж","нет",8,8,12,null,12,45,"Участник","нет","Шанина Рушана Асхатовна","Муниципальное бюджетное общеобразовательное учреждение \"Гимназия 1\" г.Чистополь Республика Татарстан"]
[28,520201,"Муниципальное бюджетное общеобразовательное учреждение «Лицей №1» Чистопольского муниципального района Республики Татарстан","Волостнова","Ж","нет",8,8,10,null,10,45,"Участник","нет","Хуснуллина Марина Сергеевна","Муниципальное бюджетное общеобразовательное учреждение \"Лицей № 1\" г.Чистополя Республики Татарстан"]
[29,520001,"Муниципальное бюджетное общеобразовательное учреждение «Гимназия №1» Чистопольского муниципального района Республики Татарстан","Акифьева","Ж","нет",8,8,10,null,10,45,"Участник","нет","Шанина Рушана Асхатовна","Муниципальное бюджетное общеобразовательное учреждение \"Гимназия 1\" г.Чистополь Республика Татарстан"]
[30,520204,"Муниципальное бюджетное общеобразовательное учреждение «Средняя общеобразовательная школа №4» Чистопольского муниципального района Республики Татарстан","Колесникова","Ж","нет",8,8,9,null,9,45,"Участник","нет","Тарасова Елена Владимировна","Муниципальное бюджетное общеобразовательное учреждение \"Средняя общеобразовательная школа №4\" Чистопольского муниципального района Республики Татарстан"]
[31,520101,"Муниципальное бюджетное общеобразовательное учреждение «Средняя общеобразовательная школа №1» Чистопольского муниципального района Республики Татарстан","Быкова","Ж","нет",8,8,9,null,9,45,"Участник","нет","Яшина Татьяна Владимировна","Муниципальное бюджетное общеобразовательное учреждение \"СОШ №1\" г.Чистополь Республики Татарстан"]
[32,520001,"Муниципальное бюджетное общеобразовательное учреждение «Гимназия №1» Чистопольского муниципального района Республики Татарстан","Панина","Ж","нет",8,8,7,null,7,45,"Участник","нет","Шанина Рушана Асхатовна","Муниципальное бюджетное общеобразовательное учреждение \"Гимназия 1\" г.Чистополь Республика Татарстан"]
[33,520001,"Муниципальное бюджетное общеобразовательное учреждение «Гимназия №1» Чистопольского муниципального района Республики Татарстан","Хузина","Ж","нет",8,8,4,null,{"$f":"SUM(I34:J34)","v":4},45,"Участник","нет","Шанина Рушана Асхатовна","Муниципальное бюджетное общеобразовательное учреждение \"Гимназия 1\" г.Чистополь Республика Татарстан"]
[34,520205,"Муниципальное бюджетное общеобразовательное учреждение «Средняя общеобразовательная школа №5» Чистопольского муниципального района Республики Татарстан","Филипова","Ж","нет",8,8,3,null,3,45,"Участник","нет","Рахматуллина Альбина Халиковна","Муниципальное бюджетное общеобразовательное учреждение\"СОШ №5\" г.Чистополя Республики Татарстан"]
[35,520201,"Муниципальное бюджетное общеобразовательное учреждение «Лицей №1» Чистопольского муниципального района Республики Татарстан","Решетникова","Ж","нет",9,9,14,null,14,35,"Участник","нет","Хуснуллина Марина Сергеевна","Муниципальное бюджетное общеобразовательное учреждение \"Лицей № 1\" г.Чистополя Республики Татарстан"]
[36,520001,"Муниципальное бюджетное общеобразовательное учреждение «Гимназия №1» Чистопольского муниципального района Республики Татарстан","Долонина","Ж","нет",9,9,12,null,12,35,"Участник","нет","Шанина Рушана Асхатовна","Муниципальное бюджетное общеобразовательное учреждение \"Гимназия 1\" г.Чистополь Республика Татарстан"]
[37,520201,"Муниципальное бюджетное общеобразовательное учреждение «Лицей №1» Чистопольского муниципального района Республики Татарстан","Пьянов","М","нет",9,9,11.5,null,11.5,35,"Участник","нет","Хуснуллина Марина Сергеевна","Муниципальное бюджетное общеобразовательное учреждение \"Лицей № 1\" г.Чистополя Республики Татарстан"]
[38,520001,"Муниципальное бюджетное общеобразовательное учреждение «Гимназия №1» Чистопольского муниципального района Республики Татарстан","Мазаева","Ж","нет",9,9,11.5,null,11.5,35,"Участник","нет","Шанина Рушана Асхатовна","Муниципальное бюджетное общеобразовательное учреждение \"Гимназия 1\" г.Чистополь Республика Татарстан"]
[39,520218,"Муниципальное бюджетное общеобразовательное учреждение «Средняя общеобразовательная школа №16» Чистопольского муниципального района Республики Татарстан","Бурмакина","Ж","нет",9,9,8.5,null,8.5,35,"Участник","нет","Корнишина Наталья Ивановна","Муниципальное бюджетное общеобразовательное учреждение \"Средняя общеобразовательная школа №16\" г.Чистополь Республики Татарстан"]
[40,520202,"Муниципальное бюджетное общеобразовательное учреждение «Лицей № 2» Чистопольского муниципального района Республики Татарстан","Биряльцев","М","нет",9,9,8,null,8,35,"Участник","нет","Белоусова Галина Петровна","Муниципальное бюджетное общеобразовательное учреждение «Лицей № 2» Чистопольского муниципального района Республики Татарстан"]
[41,520001,"Муниципальное бюджетное общеобразовательное учреждение «Гимназия №1» Чистопольского муниципального района Республики Татарстан","Хусаинов","М","нет",9,9,7.5,null,7.5,35,"Участник","нет","Шанина Рушана Асхатовна","Муниципальное бюджетное общеобразовательное учреждение \"Гимназия 1\" г.Чистополь Республика Татарстан"]
[42,520001,"Муниципальное бюджетное общеобразовательное учреждение «Гимназия №1» Чистопольского муниципального района Республики Татарстан","Хусаинов","М","нет",9,9,7.5,null,7.5,35,"Участник","нет","Шанина Рушана Асхатовна","Муниципальное бюджетное общеобразовательное учреждение \"Гимназия 1\" г.Чистополь Республика Татарстан"]
[43,520001,"Муниципальное бюджетное общеобразовательное учреждение «Гимназия №1» Чистопольского муниципального района Республики Татарстан","Насыбуллина","Ж","нет",9,9,7.5,null,7.5,35,"Участник","нет","Шанина Рушана Асхатовна","Муниципальное бюджетное общеобразовательное учреждение \"Гимназия 1\" г.Чистополь Республика Татарстан"]
[44,520001,"Муниципальное бюджетное общеобразовательное учреждение «Гимназия №1» Чистопольского муниципального района Республики Татарстан","Саярова","Ж","нет",9,9,7,null,7,35,"Участник","нет","Шанина Рушана Асхатовна","Муниципальное бюджетное общеобразовательное учреждение \"Гимназия 1\" г.Чистополь Республика Татарстан"]
[45,520101,"Муниципальное бюджетное общеобразовательное учреждение «Средняя общеобразовательная школа №1» Чистопольского муниципального района Республики Татарстан","Сорокин","М","нет",9,9,6.5,null,6.5,35,"Участник","нет","Яшина Татьяна Владимировна","Муниципальное бюджетное общеобразовательное учреждение \"СОШ №1\" г.Чистополь Республики Татарстан"]
[46,520218,"Муниципальное бюджетное общеобразовательное учреждение «Средняя общеобразовательная школа №16» Чистопольского муниципального района Республики Татарстан","Кукин","М","нет",9,9,6,null,6,35,"Участник","нет","Корнишина Наталья Ивановна","Муниципальное бюджетное общеобразовательное учреждение \"Средняя общеобразовательная школа №16\" г.Чистополь Республики Татарстан"]
[47,520204,"Муниципальное бюджетное общеобразовательное учреждение «Средняя общеобразовательная школа №4» Чистопольского муниципального района Республики Татарстан","Кордюшев","М","нет",9,9,4.5,null,4.5,35,"Участник","нет","Тарасова Елена Владимировна","Муниципальное бюджетное общеобразовательное учреждение \"Средняя общеобразовательная школа №4\" Чистопольского муниципального района Республики Татарстан"]
[48,520001,"Муниципальное бюджетное общеобразовательное учреждение «Гимназия №1» Чистопольского муниципального района Республики Татарстан","Русяев","М","нет",9,9,4,null,4,35,"Участник","нет","Шанина Рушана Асхатовна","Муниципальное бюджетное общеобразовательное учреждение \"Гимназия 1\" г.Чистополь Республика Татарстан"]
[49,520001,"Муниципальное бюджетное общеобразовательное учреждение «Гимназия №1» Чистопольского муниципального района Республики Татарстан","Галанина","Ж","нет",9,9,2.5,null,2.5,35,"Участник","нет","Шанина Рушана Асхатовна","Муниципальное бюджетное общеобразовательное учреждение \"Гимназия 1\" г.Чистополь Республика Татарстан"]
[50,520201,"Муниципальное бюджетное общеобразовательное учреждение «Лицей №1» Чистопольского муниципального района Республики Татарстан","Сарыкова","Ж","нет",10,10,10,null,10,40,"Участник","нет","Хуснуллина Марина Сергеевна","Муниципальное бюджетное общеобразовательное учреждение \"Лицей № 1\" г.Чистополя Республики Татарстан"]
[51,520001,"Муниципальное бюджетное общеобразовательное учреждение «Гимназия №1» Чистопольского муниципального района Республики Татарстан","Храмова","Ж","нет",10,10,9.5,null,9.5,40,"Участник","нет","Шанина Рушана Асхатовна","Муниципальное бюджетное общеобразовательное учреждение \"Гимназия 1\" г.Чистополь Республика Татарстан"]
[52,520201,"Муниципальное бюджетное общеобразовательное учреждение «Лицей №1» Чистопольского муниципального района Республики Татарстан","Астафьева","Ж","нет",10,10,9,null,9,40,"Участник","нет","Хуснуллина Марина Сергеевна","Муниципальное бюджетное общеобразовательное учреждение \"Лицей № 1\" г.Чистополя Республики Татарстан"]
[53,520001,"Муниципальное бюджетное общеобразовательное учреждение «Гимназия №1» Чистопольского муниципального района Республики Татарстан","Калешина","Ж","нет",10,10,6.5,null,6.5,40,"Участник","нет","Шанина Рушана Асхатовна","Муниципальное бюджетное общеобразовательное учреждение \"Гимназия 1\" г.Чистополь Республика Татарстан"]
[54,520201,"Муниципальное бюджетное общеобразовательное учреждение «Лицей №1» Чистопольского муниципального района Республики Татарстан","Матвеева","Ж","нет",10,10,6,null,6,40,"Участник","нет","Хуснуллина Марина Сергеевна","Муниципальное бюджетное общеобразовательное учреждение \"Лицей № 1\" г.Чистополя Республики Татарстан"]
[55,520001,"Муниципальное бюджетное общеобразовательное учреждение «Гимназия №1» Чистопольского муниципального района Республики Татарстан","Шведчикова","Ж","нет",10,10,4,null,4,40,"Участник","нет","Шанина Рушана Асхатовна","Муниципальное бюджетное общеобразовательное учреждение \"Гимназия 1\" г.Чистополь Республика Татарстан"]
[56,520201,"Муниципальное бюджетное общеобразовательное учреждение «Лицей №1» Чистопольского муниципального района Республики Татарстан","Карпова","Ж","нет",10,10,2.5,null,2.5,40,"Участник","нет","Хуснуллина Марина Сергеевна","Муниципальное бюджетное общеобразовательное учреждение \"Лицей № 1\" г.Чистополя Республики Татарстан"]
[57,520001,"Муниципальное бюджетное общеобразовательное учреждение «Гимназия №1» Чистопольского муниципального района Республики Татарстан","Сабитова","Ж","нет",10,10,2,null,2,40,"Участник","нет","Шанина Рушана Асхатовна","Муниципальное бюджетное общеобразовательное учреждение \"Гимназия 1\" г.Чистополь Республика Татарстан"]
[58,520001,"Муниципальное бюджетное общеобразовательное учреждение «Гимназия №1» Чистопольского муниципального района Республики Татарстан","Семенова","Ж","нет",10,10,2,null,2,40,"Участник","нет","Шанина Рушана Асхатовна","Муниципальное бюджетное общеобразовательное учреждение \"Гимназия 1\" г.Чистополь Республика Татарстан"]
[59,520204,"Муниципальное бюджетное общеобразовательное учреждение «Средняя общеобразовательная школа №4» Чистопольского муниципального района Республики Татарстан","Красильникова","Ж","нет",10,10,1,null,1,40,"Участник","нет","Тарасова Елена Владимировна","Муниципальное бюджетное общеобразовательное учреждение \"Средняя общеобразовательная школа №4\" Чистопольского муниципального района Республики Татарстан"]
[60,520205,"Муниципальное бюджетное общеобразовательное учреждение «Средняя общеобразовательная школа №5» Чистопольского муниципального района Республики Татарстан","Сабирова","Ж","нет",10,10,1,null,1,40,"Участник","нет","Рахматуллина Альбина Халиковна","Муниципальное бюджетное общеобразовательное учреждение \"СОШ №5\" г.Чистополя Республики Татарстан"]
[61,520001,"Муниципальное бюджетное общеобразовательное учреждение «Гимназия №1» Чистопольского муниципального района Республики Татарстан","Варганова","Ж","нет",10,10,0,null,0,40,"Участник","нет","Шанина Рушана Асхатовна","Муниципальное бюджетное общеобразовательное учреждение \"Гимназия 1\" г.Чистополь Республика Татарстан"]
[62,520001,"Муниципальное бюджетное общеобразовательное учреждение «Гимназия №1» Чистопольского муниципального района Республики Татарстан","Хуснуллина","Ж","нет",11,11,15,null,15,40,"Участник","нет","Шанина Рушана Асхатовна","Муниципальное бюджетное общеобразовательное учреждение \"Гимназия 1\" г.Чистополь Республика Татарстан"]
[63,520001,"Муниципальное бюджетное общеобразовательное учреждение «Гимназия №1» Чистопольского муниципального района Республики Татарстан","Чикляева","Ж","нет",11,11,13.5,null,13.5,40,"Участник","нет","Шанина Рушана Асхатовна","Муниципальное бюджетное общеобразовательное учреждение \"Гимназия 1\" г.Чистополь Республика Татарстан"]
[64,520001,"Муниципальное бюджетное общеобразовательное учреждение «Гимназия №1» Чистопольского муниципального района Республики Татарстан","Купцов","М","нет",11,11,13,null,13,40,"Участник","нет","Шанина Рушана Асхатовна","Муниципальное бюджетное общеобразовательное учреждение \"Гимназия 1\" г.Чистополь Республика Татарстан"]
[65,520001,"Муниципальное бюджетное общеобразовательное учреждение «Гимназия №1» Чистопольского муниципального района Республики Татарстан","Исхакова","Ж","нет",11,11,12.5,null,{"$f":"SUM(I66:J66)","v":12.5},40,"Участник","нет","Шанина Рушана Асхатовна","Муниципальное бюджетное общеобразовательное учреждение \"Гимназия 1\" г.Чистополь Республика Татарстан"]
[66,520001,"Муниципальное бюджетное общеобразовательное учреждение «Гимназия №1» Чистопольского муниципального района Республики Татарстан","Садриева","Ж","нет",11,11,11.5,null,11.5,40,"Участник","нет","Шанина Рушана Асхатовна","Муниципальное бюджетное общеобразовательное учреждение \"Гимназия 1\" г.Чистополь Республика Татарстан"]
[67,520204,"Муниципальное бюджетное общеобразовательное учреждение «Средняя общеобразовательная школа №4» Чистопольского муниципального района Республики Татарстан","Шафигуллина","Ж","нет",11,11,11,null,11,40,"Участник","нет","Тарасова Елена Владимировна","Муниципальное бюджетное общеобразовательное учреждение \"Средняя общеобразовательная школа №4\" Чистопольского муниципального района Республики Татарстан"]
[68,520218,"Муниципальное бюджетное общеобразовательное учреждение «Средняя общеобразовательная школа №16» Чистопольского муниципального района Республики Татарстан","Комарова","Ж","нет",11,11,11,null,11,40,"Участник","нет","Смирнова Тамара Александровна","Муниципальное бюджетное общеобразовательное учреждение \"Средняя общеобразовательная школа №16\" г.Чистополь Республики Татарстан"]
[69,520001,"Муниципальное бюджетное общеобразовательное учреждение «Гимназия №1» Чистопольского муниципального района Республики Татарстан","Денисова","Ж","нет",11,11,11,null,11,40,"Участник","нет","Шанина Рушана Асхатовна","Муниципальное бюджетное общеобразовательное учреждение \"Гимназия 1\" г.Чистополь Республика Татарстан"]
[70,520002,"Муниципальное бюджетное общеобразовательное учреждение «Гимназия №2» Чистопольского муниципального района Республики Татарстан","Суворова","Ж","нет",11,11,10.5,null,10.5,40,"Участник","нет","Мухаметшина Ирина Анатольевна","Муниципальное бюджетное общеобразовательное учреждение Гимназия №2\" Чистопольского муниципального района Республики Татарстан"]
[71,520001,"Муниципальное бюджетное общеобразовательное учреждение «Гимназия №1» Чистопольского муниципального района Республики Татарстан","Пушканова","Ж","нет",11,11,10.5,null,10.5,40,"Участник","нет","Шанина Рушана Асхатовна","Муниципальное бюджетное общеобразовательное учреждение \"Гимназия 1\" г.Чистополь Республика Татарстан"]
[72,520002,"Муниципальное бюджетное общеобразовательное учреждение «Гимназия №2» Чистопольского муниципального района Республики Татарстан","Шакиров","М","нет",11,11,9.5,null,9.5,40,"Участник","нет","Мухаметшина Ирина Анатольевна","Муниципальное бюджетное общеобразовательное учреждение Гимназия №2\" Чистопольского муниципального района Республики Татарстан"]
[73,520204,"Муниципальное бюджетное общеобразовательное учреждение «Средняя общеобразовательная школа №4» Чистопольского муниципального района Республики Татарстан","Осипова","Ж","нет",11,11,8.5,null,8.5,40,"Участник","нет","Тарасова Елена Владимировна","Муниципальное бюджетное общеобразовательное учреждение \"Средняя общеобразовательная школа №4\" Чистопольского муниципального района Республики Татарстан"]
[74,520202,"Муниципальное бюджетное общеобразовательное учреждение «Лицей № 2» Чистопольского муниципального района Республики Татарстан","Шагиев","М","нет",11,11,8,null,8,40,"Участник","нет","Белоусова Галина Петровна","Муниципальное бюджетное общеобразовательное учреждение «Лицей № 2» Чистопольского муниципального района Республики Татарстан"]
[75,520218,"Муниципальное бюджетное общеобразовательное учреждение «Средняя общеобразовательная школа №16» Чистопольского муниципального района Республики Татарстан","Зарипова","Ж","нет",11,11,4,null,4,40,"Участник","нет","Смирнова Тамара Александровна","Муниципальное бюджетное общеобразовательное учреждение \"Средняя общеобразовательная школа №16\" г.Чистополь Республики Татарстан"]
[76,520218,"Муниципальное бюджетное общеобразовательное учреждение «Средняя общеобразовательная школа №16» Чистопольского муниципального района Республики Татарстан","Гаврилова","Ж","нет",11,11,3,null,3,40,"Участник","нет","Смирнова Тамара Александровна","Муниципальное бюджетное общеобразовательное учреждение \"Средняя общеобразовательная школа №16\" г.Чистополь Республики Татарстан"]